[Event "Early-Titled-Tuesday-Blitz-December-26-2023"]
[Site "Chess.com"]
[Date "2023.12.26"]
[Round "5"]
[White "AjedrezInteligente"]
[Black "quvnoq_muxlis"]
[Result "1-0"]
[WhiteElo "2529"]
[BlackElo "2712"]
[TimeControl "180+1"]
[EndTime "8:57:30 PST"]
[Termination "AjedrezInteligente won by resignation"]

1. e4 {[%clk 0:03:00.9]} 1... c5 {[%clk 0:02:55.3]} 2. Nf3 {[%clk 0:02:56.2]}
2... Nc6 {[%clk 0:02:53.9]} 3. c3 {[%clk 0:02:56.4]} 3... Nf6 {[%clk 0:02:54.2]}
4. e5 {[%clk 0:02:54.8]} 4... Nd5 {[%clk 0:02:54.7]} 5. d4 {[%clk 0:02:55.7]}
5... cxd4 {[%clk 0:02:55.6]} 6. cxd4 {[%clk 0:02:56.4]} 6... d6 {[%clk
0:02:56.3]} 7. Bc4 {[%clk 0:02:55.7]} 7... Nb6 {[%clk 0:02:56.2]} 8. Bb5 {[%clk
0:02:56.3]} 8... d5 {[%clk 0:02:56.9]} 9. O-O {[%clk 0:02:54.7]} 9... Bg4 {[%clk
0:02:57.1]} 10. Nbd2 {[%clk 0:02:53]} 10... Rc8 {[%clk 0:02:55.7]} 11. h3 {[%clk
0:02:52.7]} 11... Bxf3 {[%clk 0:02:56]} 12. Nxf3 {[%clk 0:02:53.6]} 12... e6
{[%clk 0:02:56.6]} 13. Bg5 {[%clk 0:02:48.3]} 13... Be7 {[%clk 0:02:56]} 14.
Bxe7 {[%clk 0:02:48.7]} 14... Qxe7 {[%clk 0:02:56.9]} 15. Rc1 {[%clk 0:02:47.4]}
15... O-O {[%clk 0:02:46.9]} 16. Bxc6 {[%clk 0:02:44.3]} 16... bxc6 {[%clk
0:02:47.8]} 17. Qc2 {[%clk 0:02:36.7]} 17... Nd7 {[%clk 0:02:02.2]} 18. Qa4
{[%clk 0:02:29.8]} 18... Nb6 {[%clk 0:02:01.7]} 19. Qc2 {[%clk 0:02:23.8]} 19...
Rc7 {[%clk 0:01:44.6]} 20. Ne1 {[%clk 0:02:18.4]} 20... f6 {[%clk 0:01:31.8]}
21. Nd3 {[%clk 0:02:10.9]} 21... Nd7 {[%clk 0:01:30.3]} 22. f4 {[%clk
0:02:04.8]} 22... Rfc8 {[%clk 0:01:23.2]} 23. Nc5 {[%clk 0:01:54.5]} 23... Nf8
{[%clk 0:01:16.3]} 24. Rce1 {[%clk 0:01:46.2]} 24... f5 {[%clk 0:01:09.1]} 25.
g4 {[%clk 0:01:38.6]} 25... Qf7 {[%clk 0:01:08.6]} 26. gxf5 {[%clk 0:01:36.2]}
26... Qxf5 {[%clk 0:01:02.9]} 27. Qxf5 {[%clk 0:01:34.4]} 27... exf5 {[%clk
0:01:03.8]} 28. Rf3 {[%clk 0:01:32.4]} 28... Kf7 {[%clk 0:01:01.9]} 29. Rc1
{[%clk 0:01:28.9]} 29... Ne6 {[%clk 0:00:58.2]} 30. Nxe6 {[%clk 0:01:29.1]}
30... Kxe6 {[%clk 0:00:59.1]} 31. Rfc3 {[%clk 0:01:28.8]} 31... Kd7 {[%clk
0:00:56]} 32. Kf2 {[%clk 0:01:21.9]} 32... Rb8 {[%clk 0:00:47.2]} 33. R1c2
{[%clk 0:01:21.6]} 33... Rb4 {[%clk 0:00:42.2]} 34. Ke3 {[%clk 0:01:20.1]} 34...
a5 {[%clk 0:00:42.7]} 35. Rc5 {[%clk 0:01:16.8]} 35... a4 {[%clk 0:00:42.8]} 36.
h4 {[%clk 0:01:08.9]} 36... Rb5 {[%clk 0:00:34.3]} 37. Rxb5 {[%clk 0:01:03.4]}
37... cxb5 {[%clk 0:00:35.2]} 38. Rxc7+ {[%clk 0:01:03.4]} 38... Kxc7 {[%clk
0:00:36.1]} 39. a3 {[%clk 0:01:03.3]} 39... Kc6 {[%clk 0:00:18.8]} 40. Kd3
{[%clk 0:01:03.2]} 40... g6 {[%clk 0:00:18.5]} 41. Kc3 {[%clk 0:01:02]} 41... h6
{[%clk 0:00:16.5]} 42. Kb4 {[%clk 0:00:52.8]} 42... Kd7 {[%clk 0:00:14.7]} 43.
Kc3 {[%clk 0:00:18.9]} 43... Ke7 {[%clk 0:00:14.5]} 44. Kd3 {[%clk 0:00:18]}
44... Kf7 {[%clk 0:00:12.7]} 45. Ke3 {[%clk 0:00:17.3]} 45... Ke6 {[%clk
0:00:12.5]} 46. Kf3 {[%clk 0:00:17.8]} 46... Kf7 {[%clk 0:00:12.8]} 47. Kg3
{[%clk 0:00:18]} 47... h5 {[%clk 0:00:05.2]} 48. Kf3 {[%clk 0:00:17.9]} 48...
Ke6 {[%clk 0:00:06.1]} 49. Ke3 {[%clk 0:00:18.2]} 49... Kd7 {[%clk 0:00:07]} 50.
Kd3 {[%clk 0:00:18.5]} 50... Ke6 {[%clk 0:00:06.4]} 51. Kc3 {[%clk 0:00:19]}
51... Kd7 {[%clk 0:00:07.3]} 52. Kb4 {[%clk 0:00:19.6]} 52... Ke6 {[%clk
0:00:08.2]} 53. Kxb5 {[%clk 0:00:19.4]} 53... g5 {[%clk 0:00:08.4]} 54. hxg5
{[%clk 0:00:17.1]} 54... h4 {[%clk 0:00:08.4]} 55. g6 {[%clk 0:00:17]} 55... h3
{[%clk 0:00:09]} 56. g7 {[%clk 0:00:13.8]} 56... Kf7 {[%clk 0:00:09.9]} 57. Kc6
{[%clk 0:00:13.5]} 57... h2 {[%clk 0:00:10.3]} 58. Kd7 {[%clk 0:00:12.5]} 58...
h1=Q {[%clk 0:00:04.4]} 59. e6+ {[%clk 0:00:13.1]} 59... Kxg7 {[%clk 0:00:05.2]}
60. e7 {[%clk 0:00:13.8]} 60... Qe4 {[%clk 0:00:05.4]} 61. e8=Q {[%clk 0:00:14]}
61... Qxd4 {[%clk 0:00:05.2]} 62. Qe5+ {[%clk 0:00:11.3]} 62... Qxe5 {[%clk
0:00:05.4]} 63. fxe5 {[%clk 0:00:12.2]} 63... f4 {[%clk 0:00:06.3]} 64. e6
{[%clk 0:00:12.8]} 64... f3 {[%clk 0:00:07.2]} 65. e7 {[%clk 0:00:13.5]} 65...
f2 {[%clk 0:00:08.1]} 66. e8=Q {[%clk 0:00:14.1]} 66... f1=Q {[%clk 0:00:09]}
67. Qe5+ {[%clk 0:00:14.2]} 67... Qf6 {[%clk 0:00:08.4]} 68. Qxd5 {[%clk
0:00:14.5]} 68... Qxb2 {[%clk 0:00:09.3]} 69. Qc5 {[%clk 0:00:09.2]} 69... Kf7
{[%clk 0:00:06.3]} 70. Qc4+ {[%clk 0:00:08.5]} 70... Kf6 {[%clk 0:00:06]} 71.
Qxa4 {[%clk 0:00:08.2]} 71... Ke5 {[%clk 0:00:03.8]} 72. Kc6 {[%clk 0:00:05.9]}
72... Qg2+ {[%clk 0:00:03.7]} 73. Kb6 {[%clk 0:00:05.4]} 73... Qf2+ {[%clk
0:00:03.4]} 74. Ka6 {[%clk 0:00:05.3]} 74... Kd5 {[%clk 0:00:03.1]} 75. Qb5+
{[%clk 0:00:04.8]} 75... Kd4 {[%clk 0:00:01.9]} 76. Qb6+ {[%clk 0:00:05.1]} 1-0

[Event "Early-Titled-Tuesday-Blitz-December-26-2023"]
[Site "Chess.com"]
[Date "2023.12.26"]
[Round "5"]
[White "FoxOnTheRun97"]
[Black "arturdailima"]
[Result "1-0"]
[WhiteElo "2575"]
[BlackElo "2335"]
[TimeControl "180+1"]
[EndTime "8:57:37 PST"]
[Termination "FoxOnTheRun97 won by checkmate"]

1. d4 {[%clk 0:03:00.9]} 1... d5 {[%clk 0:02:58.4]} 2. Bf4 {[%clk 0:02:58.9]}
2... Nf6 {[%clk 0:02:49.1]} 3. Nf3 {[%clk 0:02:58.5]} 3... e6 {[%clk 0:02:49.5]}
4. e3 {[%clk 0:02:58.8]} 4... Bd6 {[%clk 0:02:50.2]} 5. Ne5 {[%clk 0:02:57.7]}
5... O-O {[%clk 0:02:44.1]} 6. Bd3 {[%clk 0:02:57.8]} 6... c5 {[%clk 0:02:40.6]}
7. c3 {[%clk 0:02:56.7]} 7... Nc6 {[%clk 0:02:40.4]} 8. Qf3 {[%clk 0:02:49.4]}
8... Ne7 {[%clk 0:02:32.8]} 9. Qh3 {[%clk 0:02:45.3]} 9... Ng6 {[%clk
0:02:29.8]} 10. Nd2 {[%clk 0:02:26.7]} 10... Qc7 {[%clk 0:02:28.7]} 11. Ndf3
{[%clk 0:02:16.9]} 11... Nxf4 {[%clk 0:02:27.8]} 12. exf4 {[%clk 0:02:16.4]}
12... cxd4 {[%clk 0:02:28.3]} 13. cxd4 {[%clk 0:02:15.6]} 13... Qa5+ {[%clk
0:02:17.3]} 14. Kf1 {[%clk 0:02:07.6]} 14... b6 {[%clk 0:02:00.8]} 15. Ng5
{[%clk 0:01:38.9]} 15... Ba6 {[%clk 0:01:46.9]} 16. Kg1 {[%clk 0:01:01]} 16...
Bxd3 {[%clk 0:01:42.7]} 17. Qxd3 {[%clk 0:01:01.3]} 17... h6 {[%clk 0:01:35.8]}
18. Ngf3 {[%clk 0:00:56.8]} 18... Rac8 {[%clk 0:01:31.2]} 19. g3 {[%clk
0:00:54.3]} 19... Qb4 {[%clk 0:01:22.8]} 20. Rb1 {[%clk 0:00:48.8]} 20... Ne4
{[%clk 0:01:13.5]} 21. Kg2 {[%clk 0:00:44.7]} 21... f6 {[%clk 0:01:13]} 22. a3
{[%clk 0:00:35.9]} 22... Qa5 {[%clk 0:01:05.5]} 23. Ng4 {[%clk 0:00:30.6]} 23...
Rc4 {[%clk 0:00:59.6]} 24. Ne3 {[%clk 0:00:30]} 24... Rc7 {[%clk 0:00:55.4]} 25.
f5 {[%clk 0:00:30.4]} 25... exf5 {[%clk 0:00:47.3]} 26. Nxf5 {[%clk 0:00:29.2]}
26... Rfc8 {[%clk 0:00:42.6]} 27. Rhe1 {[%clk 0:00:19.4]} 27... Bf8 {[%clk
0:00:40.5]} 28. Re2 {[%clk 0:00:18.4]} 28... Qa4 {[%clk 0:00:33.1]} 29. Nd2
{[%clk 0:00:18]} 29... Nxd2 {[%clk 0:00:17.8]} 30. Qxd2 {[%clk 0:00:18.9]} 30...
Rc2 {[%clk 0:00:16.6]} 31. Qd3 {[%clk 0:00:17.7]} 31... Rxe2 {[%clk 0:00:12]}
32. Qxe2 {[%clk 0:00:18.6]} 32... Qd7 {[%clk 0:00:12.2]} 33. Ne3 {[%clk
0:00:18.3]} 33... Qe6 {[%clk 0:00:09.3]} 34. Qf3 {[%clk 0:00:18.6]} 34... Rd8
{[%clk 0:00:08.6]} 35. Rc1 {[%clk 0:00:18.3]} 35... Qe4 {[%clk 0:00:08.9]} 36.
Rc7 {[%clk 0:00:17.6]} 36... Qxd4 {[%clk 0:00:07.1]} 37. h4 {[%clk 0:00:15.5]}
37... Qe4 {[%clk 0:00:07.3]} 38. Rxa7 {[%clk 0:00:15.4]} 38... Qxf3+ {[%clk
0:00:06.4]} 39. Kxf3 {[%clk 0:00:15.6]} 39... d4 {[%clk 0:00:07]} 40. Nc4 {[%clk
0:00:15.9]} 40... d3 {[%clk 0:00:06.7]} 41. Nd2 {[%clk 0:00:16.2]} 41... Bc5
{[%clk 0:00:06.8]} 42. Rc7 {[%clk 0:00:14.9]} 42... Bd4 {[%clk 0:00:05.7]} 43.
b3 {[%clk 0:00:14.6]} 43... Bb2 {[%clk 0:00:05.7]} 44. a4 {[%clk 0:00:14.3]}
44... Ba3 {[%clk 0:00:04.3]} 45. Rc4 {[%clk 0:00:13.4]} 45... Bc5 {[%clk
0:00:03.3]} 46. b4 {[%clk 0:00:12.7]} 46... Bf8 {[%clk 0:00:04]} 47. a5 {[%clk
0:00:13]} 47... bxa5 {[%clk 0:00:03.7]} 48. bxa5 {[%clk 0:00:13.9]} 48... Ra8
{[%clk 0:00:04.3]} 49. Nb3 {[%clk 0:00:13.7]} 49... d2 {[%clk 0:00:04.7]} 50.
Nxd2 {[%clk 0:00:13.7]} 50... Rxa5 {[%clk 0:00:04.9]} 51. Ne4 {[%clk 0:00:14.3]}
51... Kf7 {[%clk 0:00:05]} 52. g4 {[%clk 0:00:14.3]} 52... Ra7 {[%clk
0:00:05.5]} 53. Ng3 {[%clk 0:00:14.5]} 53... g6 {[%clk 0:00:04.9]} 54. h5 {[%clk
0:00:14.6]} 54... Ra3+ {[%clk 0:00:05.4]} 55. Kg2 {[%clk 0:00:14.5]} 55... gxh5
{[%clk 0:00:05.3]} 56. Nxh5 {[%clk 0:00:14.3]} 56... Be7 {[%clk 0:00:04]} 57.
Ng3 {[%clk 0:00:14.4]} 57... Ra2 {[%clk 0:00:04]} 58. Nf5 {[%clk 0:00:14.7]}
58... Ke6 {[%clk 0:00:04.2]} 59. Re4+ {[%clk 0:00:14.5]} 59... Kd5 {[%clk
0:00:04.7]} 60. Rxe7 {[%clk 0:00:14.8]} 60... Ra4 {[%clk 0:00:05.4]} 61. Rd7+
{[%clk 0:00:14.9]} 61... Ke6 {[%clk 0:00:05.8]} 62. Rg7 {[%clk 0:00:15.1]} 62...
h5 {[%clk 0:00:05.2]} 63. Ne3 {[%clk 0:00:14.1]} 63... hxg4 {[%clk 0:00:05.2]}
64. Nxg4 {[%clk 0:00:14.1]} 64... Ra1 {[%clk 0:00:06.1]} 65. Ne3 {[%clk
0:00:13.9]} 65... f5 {[%clk 0:00:06.1]} 66. Kf3 {[%clk 0:00:13.8]} 66... Kf6
{[%clk 0:00:06.5]} 67. Rg8 {[%clk 0:00:13.9]} 67... Ra4 {[%clk 0:00:07]} 68.
Rf8+ {[%clk 0:00:14.2]} 68... Kg6 {[%clk 0:00:07.4]} 69. Rxf5 {[%clk 0:00:14.7]}
69... Ra3 {[%clk 0:00:07.7]} 70. Rb5 {[%clk 0:00:15.2]} 70... Ra1 {[%clk
0:00:07.8]} 71. Ke4 {[%clk 0:00:15.5]} 71... Kf6 {[%clk 0:00:08.4]} 72. f4
{[%clk 0:00:15.7]} 72... Ra4+ {[%clk 0:00:09]} 73. Kf3 {[%clk 0:00:16.1]} 73...
Ra3 {[%clk 0:00:09.5]} 74. Rb6+ {[%clk 0:00:16.4]} 74... Kf7 {[%clk 0:00:09.3]}
75. Ke4 {[%clk 0:00:16.5]} 75... Ra4+ {[%clk 0:00:09.6]} 76. Ke5 {[%clk
0:00:16.6]} 76... Ra1 {[%clk 0:00:10.5]} 77. f5 {[%clk 0:00:16.6]} 77... Ra5+
{[%clk 0:00:10.1]} 78. Nd5 {[%clk 0:00:16.2]} 78... Ra1 {[%clk 0:00:10.8]} 79.
Rb7+ {[%clk 0:00:16.5]} 79... Kf8 {[%clk 0:00:11.5]} 80. Kf6 {[%clk 0:00:16.8]}
80... Ra6+ {[%clk 0:00:12.1]} 81. Kg5 {[%clk 0:00:16.6]} 81... Kg8 {[%clk
0:00:11.2]} 82. Nf4 {[%clk 0:00:15.4]} 82... Ra1 {[%clk 0:00:10.9]} 83. Ne6
{[%clk 0:00:14.7]} 83... Ra6 {[%clk 0:00:08.9]} 84. Kg6 {[%clk 0:00:14.3]} 84...
Ra8 {[%clk 0:00:08.8]} 85. f6 {[%clk 0:00:14]} 85... Kh8 {[%clk 0:00:09.1]} 86.
Rh7+ {[%clk 0:00:13.6]} 86... Kg8 {[%clk 0:00:09]} 87. f7# {[%clk 0:00:14.5]}
1-0

[Event "Early-Titled-Tuesday-Blitz-December-26-2023"]
[Site "Chess.com"]
[Date "2023.12.26"]
[Round "5"]
[White "fugadelafuga"]
[Black "RebecaJimnz"]
[Result "1/2-1/2"]
[WhiteElo "2427"]
[BlackElo "2261"]
[TimeControl "180+1"]
[EndTime "8:57:37 PST"]
[Termination "Game drawn by repetition"]

1. c4 {[%clk 0:02:50.3]} 1... c5 {[%clk 0:02:58.6]} 2. Nc3 {[%clk 0:02:38.3]}
2... Nc6 {[%clk 0:02:59]} 3. g3 {[%clk 0:02:38.6]} 3... g6 {[%clk 0:02:59.6]} 4.
Bg2 {[%clk 0:02:39.1]} 4... Bg7 {[%clk 0:03:00.3]} 5. e4 {[%clk 0:02:38.9]} 5...
e6 {[%clk 0:02:53.5]} 6. Nge2 {[%clk 0:02:34.9]} 6... Nge7 {[%clk 0:02:52.7]} 7.
d3 {[%clk 0:02:35.5]} 7... O-O {[%clk 0:02:52.4]} 8. Be3 {[%clk 0:02:33.6]} 8...
Nd4 {[%clk 0:02:45.4]} 9. a3 {[%clk 0:02:28.9]} 9... b6 {[%clk 0:02:45.8]} 10.
e5 {[%clk 0:02:21.6]} 10... Rb8 {[%clk 0:02:45.3]} 11. Nxd4 {[%clk 0:02:20.6]}
11... cxd4 {[%clk 0:02:42.6]} 12. Bxd4 {[%clk 0:02:21.5]} 12... d6 {[%clk
0:02:37.7]} 13. Be3 {[%clk 0:02:13.5]} 13... Bxe5 {[%clk 0:02:32.6]} 14. O-O
{[%clk 0:02:07.7]} 14... Bb7 {[%clk 0:02:30.5]} 15. Bxb7 {[%clk 0:02:06.7]}
15... Rxb7 {[%clk 0:02:31.4]} 16. Bh6 {[%clk 0:02:05.8]} 16... Bg7 {[%clk
0:02:28]} 17. Bxg7 {[%clk 0:02:05.9]} 17... Kxg7 {[%clk 0:02:28.9]} 18. d4
{[%clk 0:02:06.1]} 18... d5 {[%clk 0:02:28]} 19. cxd5 {[%clk 0:01:56.4]} 19...
Nxd5 {[%clk 0:02:27.9]} 20. Ne4 {[%clk 0:01:56.6]} 20... Nf6 {[%clk 0:02:23.5]}
21. Qd3 {[%clk 0:01:51]} 21... Nxe4 {[%clk 0:02:18.9]} 22. Qxe4 {[%clk
0:01:51.9]} 22... Rd7 {[%clk 0:02:19.2]} 23. Rfd1 {[%clk 0:01:51.7]} 23... Qf6
{[%clk 0:02:17.6]} 24. Rd2 {[%clk 0:01:47.1]} 24... Rfd8 {[%clk 0:02:17.9]} 25.
Rad1 {[%clk 0:01:47.6]} 25... Rd5 {[%clk 0:02:13]} 26. Kg2 {[%clk 0:01:46.5]}
26... h5 {[%clk 0:02:05.8]} 27. h4 {[%clk 0:01:45.8]} 27... Qe7 {[%clk
0:02:00.2]} 28. Qe3 {[%clk 0:01:44.1]} 28... Qb7 {[%clk 0:01:59.5]} 29. Kg1
{[%clk 0:01:43.6]} 29... Qe7 {[%clk 0:01:50.9]} 30. Re1 {[%clk 0:01:42]} 30...
Qf6 {[%clk 0:01:50]} 31. Red1 {[%clk 0:01:40.2]} 31... Qf5 {[%clk 0:01:42.9]}
32. Kg2 {[%clk 0:01:37.2]} 32... R5d7 {[%clk 0:01:22.3]} 33. Qf3 {[%clk
0:01:28]} 33... Qa5 {[%clk 0:01:03.9]} 34. b4 {[%clk 0:01:20.2]} 34... Qb5
{[%clk 0:00:55.5]} 35. Qe4 {[%clk 0:01:15.4]} 35... Rd5 {[%clk 0:00:50.4]} 36.
Qf4 {[%clk 0:01:04]} 36... Qc6 {[%clk 0:00:49.2]} 37. Kg1 {[%clk 0:01:02]} 37...
Qc3 {[%clk 0:00:48.7]} 38. Rd3 {[%clk 0:01:00.7]} 38... Qc4 {[%clk 0:00:46.1]}
39. Qe4 {[%clk 0:00:58.6]} 39... e5 {[%clk 0:00:37.4]} 40. Rf3 {[%clk
0:00:48.1]} 40... exd4 {[%clk 0:00:23.8]} 41. Qe7 {[%clk 0:00:43.2]} 41... R5d7
{[%clk 0:00:19.5]} 42. Qe5+ {[%clk 0:00:43.2]} 42... Kg8 {[%clk 0:00:18.8]} 43.
Rdd3 {[%clk 0:00:36.7]} 43... Qd5 {[%clk 0:00:18.6]} 44. Qg5 {[%clk 0:00:35.1]}
44... Qxg5 {[%clk 0:00:18.4]} 45. hxg5 {[%clk 0:00:36]} 45... Kg7 {[%clk
0:00:18.7]} 46. Rf4 {[%clk 0:00:35.9]} 46... Rd5 {[%clk 0:00:19.2]} 47. Kg2
{[%clk 0:00:35.6]} 47... Rxg5 {[%clk 0:00:19.3]} 48. Rfxd4 {[%clk 0:00:35.5]}
48... Rxd4 {[%clk 0:00:20.2]} 49. Rxd4 {[%clk 0:00:36.4]} 49... Re5 {[%clk
0:00:20.8]} 50. Rd7 {[%clk 0:00:36]} 50... a5 {[%clk 0:00:20.9]} 51. Rd6 {[%clk
0:00:34.3]} 51... axb4 {[%clk 0:00:19.3]} 52. axb4 {[%clk 0:00:35.2]} 52... Rb5
{[%clk 0:00:19.5]} 53. Rd4 {[%clk 0:00:35.5]} 53... Kf6 {[%clk 0:00:19.7]} 54.
f4 {[%clk 0:00:33.5]} 54... Ke6 {[%clk 0:00:19.9]} 55. Kf3 {[%clk 0:00:33.7]}
55... Rd5 {[%clk 0:00:20.2]} 56. Rc4 {[%clk 0:00:33]} 56... b5 {[%clk
0:00:16.9]} 57. Rc6+ {[%clk 0:00:31.2]} 57... Kd7 {[%clk 0:00:17.2]} 58. Rf6
{[%clk 0:00:30.6]} 58... Ke7 {[%clk 0:00:14.9]} 59. Rb6 {[%clk 0:00:30.5]} 59...
Kd7 {[%clk 0:00:09.6]} 60. Ke4 {[%clk 0:00:29]} 60... Rf5 {[%clk 0:00:09.6]} 61.
Rb7+ {[%clk 0:00:27.2]} 61... Ke6 {[%clk 0:00:09.9]} 62. Rb6+ {[%clk 0:00:26.3]}
62... Ke7 {[%clk 0:00:10]} 63. Kd4 {[%clk 0:00:26.2]} 63... Kf8 {[%clk
0:00:08.6]} 64. Ke4 {[%clk 0:00:25.3]} 64... Kg7 {[%clk 0:00:08.6]} 65. Rb7
{[%clk 0:00:25.5]} 65... Kg8 {[%clk 0:00:07.3]} 66. Rb6 {[%clk 0:00:22.7]} 66...
Kg7 {[%clk 0:00:07.6]} 67. Rd6 {[%clk 0:00:21.5]} 67... Kg8 {[%clk 0:00:06.9]}
68. Rc6 {[%clk 0:00:17.6]} 68... Kg7 {[%clk 0:00:06.9]} 69. Rc3 {[%clk
0:00:16.7]} 69... Kf8 {[%clk 0:00:05.9]} 70. Rc7 {[%clk 0:00:16.3]} 70... Ke8
{[%clk 0:00:06.1]} 71. Rb7 {[%clk 0:00:16]} 71... Kf8 {[%clk 0:00:05.5]} 72. Rc7
{[%clk 0:00:15.8]} 72... Ke8 {[%clk 0:00:05.9]} 73. Rc6 {[%clk 0:00:13.7]} 73...
Ke7 {[%clk 0:00:05.8]} 74. Rb6 {[%clk 0:00:14.3]} 74... Kd7 {[%clk 0:00:05.6]}
75. Rb8 {[%clk 0:00:14.5]} 75... Ke7 {[%clk 0:00:05.4]} 76. Rc8 {[%clk
0:00:14.1]} 76... Kd7 {[%clk 0:00:05.6]} 77. Rb8 {[%clk 0:00:13.9]} 77... Ke7
{[%clk 0:00:05.8]} 78. Ke3 {[%clk 0:00:12.3]} 78... Rd5 {[%clk 0:00:04.4]} 79.
Ke4 {[%clk 0:00:12.6]} 79... Rf5 {[%clk 0:00:03.1]} 1/2-1/2

[Event "Early-Titled-Tuesday-Blitz-December-26-2023"]
[Site "Chess.com"]
[Date "2023.12.26"]
[Round "5"]
[White "Devil_Sun"]
[Black "ilya2700"]
[Result "1-0"]
[WhiteElo "2597"]
[BlackElo "2339"]
[TimeControl "180+1"]
[EndTime "8:57:38 PST"]
[Termination "Devil_Sun won on time"]

1. d4 {[%clk 0:03:00.9]} 1... d5 {[%clk 0:02:59.6]} 2. c4 {[%clk 0:03:01.6]}
2... e6 {[%clk 0:02:59.7]} 3. Nf3 {[%clk 0:03:01.1]} 3... Nf6 {[%clk 0:03:00.1]}
4. Nc3 {[%clk 0:03:01.7]} 4... Be7 {[%clk 0:03:00.2]} 5. Bf4 {[%clk 0:03:00.4]}
5... O-O {[%clk 0:03:00.1]} 6. e3 {[%clk 0:03:00.9]} 6... Nbd7 {[%clk
0:03:00.4]} 7. c5 {[%clk 0:02:59.2]} 7... c6 {[%clk 0:03:00.3]} 8. Bd3 {[%clk
0:02:54.1]} 8... b6 {[%clk 0:03:00.3]} 9. b4 {[%clk 0:02:54.1]} 9... a5 {[%clk
0:03:00.8]} 10. a3 {[%clk 0:02:54.8]} 10... Ba6 {[%clk 0:02:59.2]} 11. Bxa6
{[%clk 0:02:54.6]} 11... Rxa6 {[%clk 0:03:00.1]} 12. Qd3 {[%clk 0:02:53]} 12...
b5 {[%clk 0:02:51.4]} 13. O-O {[%clk 0:02:52.4]} 13... Qa8 {[%clk 0:02:49]} 14.
Rab1 {[%clk 0:02:40.5]} 14... axb4 {[%clk 0:02:40.2]} 15. axb4 {[%clk
0:02:41.4]} 15... Ra3 {[%clk 0:02:40.3]} 16. Qc2 {[%clk 0:02:42.1]} 16... Qb7
{[%clk 0:02:35.5]} 17. Ra1 {[%clk 0:02:32.8]} 17... Rfa8 {[%clk 0:02:35.3]} 18.
Rxa3 {[%clk 0:02:31.5]} 18... Rxa3 {[%clk 0:02:36.2]} 19. Qb2 {[%clk 0:02:32.4]}
19... Qa6 {[%clk 0:02:32.6]} 20. Bc7 {[%clk 0:02:30.4]} 20... Ne4 {[%clk
0:02:16.2]} 21. Nxe4 {[%clk 0:02:28.5]} 21... dxe4 {[%clk 0:02:17.1]} 22. Nd2
{[%clk 0:02:29.4]} 22... Nf6 {[%clk 0:02:15.3]} 23. Ba5 {[%clk 0:02:28.1]} 23...
Rd3 {[%clk 0:02:09.1]} 24. Qc2 {[%clk 0:02:24.2]} 24... Qb7 {[%clk 0:01:55.6]}
25. Nxe4 {[%clk 0:02:21.8]} 25... Ra3 {[%clk 0:01:53.6]} 26. Nc3 {[%clk
0:02:15.1]} 26... Nd5 {[%clk 0:01:52.2]} 27. Nxd5 {[%clk 0:02:14.9]} 27... exd5
{[%clk 0:01:53.1]} 28. Qf5 {[%clk 0:01:59.6]} 28... g6 {[%clk 0:01:40.8]} 29.
Qf4 {[%clk 0:01:58.7]} 29... Qc8 {[%clk 0:01:37.3]} 30. h3 {[%clk 0:01:54.3]}
30... Bd8 {[%clk 0:01:35.2]} 31. Bxd8 {[%clk 0:01:45.5]} 31... Qxd8 {[%clk
0:01:36.1]} 32. Rb1 {[%clk 0:01:41.6]} 32... Qd7 {[%clk 0:01:17]} 33. g4 {[%clk
0:01:36.4]} 33... Qa7 {[%clk 0:01:13.7]} 34. Kg2 {[%clk 0:01:35.8]} 34... Ra2
{[%clk 0:01:07]} 35. Qf6 {[%clk 0:01:31.7]} 35... Qa3 {[%clk 0:00:59.5]} 36.
Qxc6 {[%clk 0:01:08.8]} 36... Qxe3 {[%clk 0:00:57.6]} 37. Qa8+ {[%clk
0:01:09.3]} 37... Rxa8 {[%clk 0:00:55.2]} 38. fxe3 {[%clk 0:01:10.2]} 38... Kf8
{[%clk 0:00:54.6]} 39. c6 {[%clk 0:01:03.5]} 39... Ke8 {[%clk 0:00:54.6]} 40.
Rc1 {[%clk 0:01:03.5]} 40... Kd8 {[%clk 0:00:54.7]} 41. Rc5 {[%clk 0:01:03.8]}
41... Kc7 {[%clk 0:00:53.4]} 42. Kf3 {[%clk 0:00:53.1]} 42... Ra4 {[%clk
0:00:52.8]} 43. Rxb5 {[%clk 0:00:50.9]} 43... Kxc6 {[%clk 0:00:53]} 44. Rc5+
{[%clk 0:00:51.3]} 44... Kd6 {[%clk 0:00:53.3]} 45. b5 {[%clk 0:00:52.2]} 45...
Ra1 {[%clk 0:00:49.4]} 46. Rc6+ {[%clk 0:00:51.9]} 46... Kd7 {[%clk 0:00:48.8]}
47. Rc5 {[%clk 0:00:41.4]} 47... Kd6 {[%clk 0:00:46.5]} 48. b6 {[%clk
0:00:41.7]} 48... Rb1 {[%clk 0:00:44.5]} 49. Rc7 {[%clk 0:00:41.7]} 49... f6
{[%clk 0:00:22.4]} 50. Rxh7 {[%clk 0:00:30.9]} 50... Rxb6 {[%clk 0:00:22.6]} 51.
h4 {[%clk 0:00:30.5]} 51... Ke6 {[%clk 0:00:20]} 52. Rg7 {[%clk 0:00:28.8]}
52... Rb1 {[%clk 0:00:13]} 53. Rxg6 {[%clk 0:00:28.9]} 53... Rf1+ {[%clk
0:00:13.4]} 54. Ke2 {[%clk 0:00:28.9]} 54... Rh1 {[%clk 0:00:13.5]} 55. h5
{[%clk 0:00:28.8]} 55... Kf7 {[%clk 0:00:14.1]} 56. g5 {[%clk 0:00:23.5]} 56...
Rxh5 {[%clk 0:00:09.7]} 57. Rxf6+ {[%clk 0:00:23.5]} 57... Ke7 {[%clk
0:00:10.1]} 58. Rf5 {[%clk 0:00:24.4]} 58... Ke6 {[%clk 0:00:09.3]} 59. Re5+
{[%clk 0:00:25]} 59... Kd6 {[%clk 0:00:09.9]} 60. Kf3 {[%clk 0:00:25.8]} 60...
Rh3+ {[%clk 0:00:08]} 61. Kg4 {[%clk 0:00:26.4]} 61... Rh1 {[%clk 0:00:07.8]}
62. Kf5 {[%clk 0:00:26.4]} 62... Rb1 {[%clk 0:00:07.3]} 63. g6 {[%clk
0:00:26.3]} 63... Rg1 {[%clk 0:00:06.7]} 64. Kf6 {[%clk 0:00:26.2]} 64... Kc6
{[%clk 0:00:05.9]} 65. g7 {[%clk 0:00:26]} 65... Kb5 {[%clk 0:00:05.4]} 66. Rg5
{[%clk 0:00:25.6]} 66... Rf1+ {[%clk 0:00:04.8]} 67. Ke5 {[%clk 0:00:25.2]}
67... Kb4 {[%clk 0:00:02.4]} 68. g8=Q {[%clk 0:00:25.2]} 68... Kc3 {[%clk
0:00:02.5]} 69. Qxd5 {[%clk 0:00:24.6]} 69... Kd2 {[%clk 0:00:02.1]} 70. Rg2+
{[%clk 0:00:23.3]} 70... Ke1 {[%clk 0:00:01.3]} 71. Qa5+ {[%clk 0:00:23.9]} 1-0